bitfinex/quotes_ETHUSD_20251004
["timestamp","ask_amount","ask_price","bid_price","bid_amount"]
[1759593815298,0.002,4460.0,4459.7,2.533]
[1759593815467,0.02255472,4459.9,4459.7,2.533]
[1759593816406,0.002,4460.0,4459.7,2.533]
[1759593816703,0.02255472,4459.9,4459.7,2.533]
[1759593817098,0.02255472,4459.9,4459.7,2.532]
[1759593817669,0.002,4460.0,4459.7,2.532]
[1759593817870,0.02255472,4459.9,4459.7,2.532]
[1759593818903,0.002,4460.0,4459.7,2.532]
[1759593819096,0.02255472,4459.9,4459.7,2.532]
[1759593819605,0.02255472,4459.9,4459.5,2.532]
[1759593819606,0.4638,4459.8,4459.5,2.532]
[1759593819763,0.02255472,4459.7,4459.5,2.532]
[1759593820720,0.02255472,4459.8,4459.5,2.532]
[1759593821203,0.02255472,4459.8,4459.6,2.532]
[1759593822422,0.002,4460.0,4459.6,2.532]
[1759593822638,0.02455472,4460.0,4459.6,2.532]
[1759593824813,0.02455472,4460.0,4459.5,0.112]
[1759593825045,0.02455472,4460.0,4459.6,2.532]
[1759593825245,0.4638,4459.9,4459.6,2.532]
[1759593825446,0.02255472,4459.8,4459.6,2.532]
[1759593826440,0.02455472,4460.0,4459.6,2.532]
[1759593826652,0.02455472,4460.0,4459.5,0.112]
[1759593826853,0.02455472,4460.0,4459.6,2.532]
[1759593828679,0.02455472,4460.0,4459.8,2.24221158]
[1759593828895,0.002,4460.0,4459.9,2.26462475]
[1759593829377,0.002,4460.0,4459.9,3.01927907]
[1759593829577,0.002,4460.0,4459.9,17.54170109]
[1759593829777,0.002,4460.0,4459.9,20.05027907]
[1759593831041,0.002,4460.0,4459.9,19.75737907]
[1759593831242,0.002,4460.0,4459.9,4.77320273]
[1759593831886,0.002,4460.0,4459.9,5.06610273]
[1759593832867,0.002,4460.0,4459.9,19.56610273]
[1759593833386,0.002,4460.0,4459.9,22.07524536]
[1759593837588,0.002,4460.0,4459.9,21.96610273]
[1759593837792,0.002,4460.0,4459.9,24.24372171]
[1759593838100,0.002,4460.0,4459.9,2.533]
[1759593838243,0.002,4460.0,4459.9,5.06810273]
[1759593838650,0.002,4460.0,4459.9,7.46810273]
[1759593839754,0.002,4460.0,4459.9,21.67520273]
[1759593843956,0.002,4460.0,4459.9,7.17520273]
[1759593844657,0.002,4460.0,4459.9,21.67520273]
[1759593847492,0.002,4460.0,4459.9,7.17520273]
[1759593847855,0.002,4460.0,4459.9,7.28720273]
[1759593848054,0.002,4460.0,4459.9,21.78720273]
[1759593848592,0.002,4460.0,4459.9,31.75079149]
[1759593849591,0.002,4460.0,4459.9,34.91557949]
[1759593849887,0.002,4460.0,4459.9,33.34468049]
[1759593850093,0.002,4460.0,4459.9,33.34254249]
[1759593850294,0.002,4460.0,4459.9,24.61085749]
[1759593850458,0.002,4460.0,4459.9,25.10575584]
[1759593850659,0.002,4460.0,4459.9,55.10575584]
[1759593850856,0.002,4460.3,4460.2,2.87565192]
[1759593851091,0.002,4460.3,4460.2,25.97100043]
[1759593851392,0.002,4460.3,4460.2,26.41308392]
[1759593852166,0.002,4460.3,4460.2,25.70082592]
[1759593852382,0.002,4460.3,4460.2,26.42662492]
[1759593852692,0.002,4460.3,4460.2,28.7042439]
[1759593852894,0.002,4460.3,4460.2,20.5795599]
[1759593853097,0.002,4460.3,4460.2,18.4272919]
[1759593853590,0.002,4460.3,4460.2,18.2923699]
[1759593854464,0.002,4460.3,4460.2,24.4893179]
[1759593855274,0.002,4460.3,4460.2,23.7100369]
[1759593855482,0.002,4460.3,4460.2,24.9652689]
[1759593856623,0.002,4460.3,4460.2,24.9614619]
[1759593857701,0.002,4460.3,4460.2,25.5278579]
[1759593858024,0.4683,4460.3,4460.2,9.5626709]
[1759593858198,0.4683,4460.3,4460.2,7.28505192]
[1759593860286,0.4683,4460.3,4460.2,2.512]
[1759593860484,0.4683,4460.3,4460.2,4.88505192]
[1759593860988,0.4683,4460.3,4460.2,2.35405192]
[1759593861201,0.4683,4460.3,4460.2,4.88505192]
[1759593863548,0.4683,4460.3,4460.2,2.35405192]
[1759593863712,0.4683,4460.3,4460.2,4.88505192]
[1759593864252,0.002,4460.3,4460.2,10.62333392]
[1759593864544,0.002,4460.3,4460.2,7.1626709]
[1759593864748,0.002,4460.3,4460.2,6.89003792]
[1759593865130,0.002,4460.3,4460.2,9.29003792]
[1759593865341,0.002,4460.3,4460.2,15.49186592]
[1759593866036,0.002,4460.3,4460.2,15.78476592]
[1759593866237,0.002,4460.3,4460.2,7.57795192]
[1759593866435,0.002,4460.3,4460.2,8.26706186]
[1759593866660,0.002,4460.3,4460.2,36.05109686]
[1759593867232,0.002,4460.3,4460.2,39.20941386]
[1759593867459,0.002,4460.3,4460.2,39.50231386]
[1759593867668,0.002,4460.3,4460.2,38.76234786]
[1759593867957,0.002,4460.3,4460.2,33.83288586]
[1759593868258,0.002,4460.3,4460.2,33.53998586]
[1759593868564,0.002,4460.3,4460.2,33.63998586]
[1759593868944,0.002,4460.3,4460.2,34.63998586]
[1759593869125,0.002,4460.3,4460.2,33.71171586]
[1759593869325,0.002,4460.3,4460.2,33.63998586]
[1759593869555,0.002,4460.3,4460.2,34.18968586]
[1759593869860,0.002,4460.3,4460.2,33.88810986]
[1759593870064,0.002,4460.3,4460.2,34.33840986]
[1759593870266,0.002,4460.3,4460.2,33.33840986]
[1759593870562,0.002,4460.3,4460.2,33.83480986]
[1759593871272,0.002,4460.3,4460.2,33.73480986]
[1759593871446,0.002,4460.3,4460.2,33.23840986]
[1759593872572,0.002,4460.3,4460.2,35.82894586]
[1759593872866,0.002,4460.3,4460.2,35.33254586]
[1759593873043,0.002,4460.3,4460.2,33.23840986]
[1759593873746,0.002,4460.3,4460.2,35.82894486]
[1759593874037,0.002,4460.3,4460.2,34.82894486]
[1759593874456,0.002,4460.3,4460.2,33.23840986]
[1759593874652,0.002,4460.3,4460.2,23.59492786]
[1759593874866,0.4303,4460.3,4460.2,19.542]
[1759593875068,0.4303,4460.3,4460.2,2.642]
[1759593875232,0.4303,4460.3,4460.2,0.112]
[1759593875431,0.4303,4460.3,4460.2,4.88405192]
[1759593876368,0.4303,4460.3,4460.2,2.35405192]
[1759593876545,0.4303,4460.3,4460.2,4.88405192]
[1759593877763,0.4303,4460.3,4460.2,2.642]
[1759593877984,0.4303,4460.3,4460.2,4.88405192]
[1759593878163,0.4303,4460.3,4460.2,2.35405192]
[1759593878360,0.4303,4460.3,4460.2,2.642]
[1759593879299,0.4303,4460.3,4460.2,0.112]
[1759593879462,0.4303,4460.3,4460.2,2.642]
[1759593879800,0.4303,4460.3,4460.2,0.112]
[1759593879965,2.24210219,4460.1,4460.0,0.001]
[1759593880154,2.26465691,4460.1,4460.0,0.001]
[1759593880360,2.69295691,4460.1,4460.0,2.531]
[1759593881496,2.69295691,4460.1,4460.0,0.001]
[1759593882698,0.45085472,4460.1,4460.0,0.001]
[1759593882907,2.69295691,4460.1,4460.0,0.001]
[1759593883800,0.45085472,4460.1,4460.0,0.001]
[1759593884002,0.4283,4460.1,4460.0,0.001]
[1759593884179,0.4283,4460.1,4460.0,2.531]
[1759593885300,2.67040219,4460.1,4460.0,2.531]
[1759593885710,2.69295691,4460.1,4460.0,2.531]
[1759593886993,2.67040219,4460.1,4460.0,2.531]
[1759593887180,2.67040219,4460.1,4460.0,0.001]
[1759593889906,2.78240219,4460.1,4460.0,0.001]
[1759593892107,7.96086139,4460.1,4460.0,0.001]
[1759593893043,10.36086139,4460.1,4460.0,0.001]
[1759593893346,10.99446139,4460.1,4460.0,0.001]
[1759593898031,2.24235357,4459.6,4459.5,0.001]
[1759593898233,13.11896749,4459.6,4459.5,0.001]
[1759593898441,13.56431277,4459.6,4459.5,0.001]
[1759593898947,13.65409942,4459.6,4459.5,0.001]
[1759593901583,2.24305431,4458.3,4458.0,0.2589]
[1759593901775,0.02255472,4458.2,4458.0,0.2589]
[1759593901974,2.24296982,4458.4,4457.2,0.0224356]
[1759593902182,0.02255472,4458.3,4457.2,0.0224356]
[1759593902352,0.02255472,4458.3,4457.4,2.24345799]
[1759593902748,2.26560232,4458.3,4457.3,2.24349874]
[1759593903164,2.2655796,4458.3,4457.1,0.01]
[1759593903371,2.26558993,4458.3,4457.8,0.2589]
[1759593903570,0.02255472,4458.3,4457.9,0.2589]
[1759593903768,2.24302062,4458.3,4458.0,0.2589]
[1759593904069,0.02255472,4458.2,4458.0,0.2589]
[1759593904471,0.02255472,4458.2,4457.1,0.01]
[1759593904666,2.2429068,4458.5,4458.1,0.2589]
[1759593904869,0.02255472,4458.4,4458.1,0.2589]
[1759593905881,2.24305403,4458.3,4458.1,0.2589]
[1759593906085,0.02255472,4458.2,4458.1,0.2589]
[1759593906270,2.26561245,4458.2,4458.1,0.2589]
[1759593906466,2.26561245,4458.2,4457.3,2.24350041]
[1759593906649,2.26561245,4458.2,4457.8,0.2589]
[1759593906987,0.02255472,4458.2,4457.9,0.2589]
[1759593907148,0.02255472,4458.3,4458.0,0.2589]
[1759593907350,0.02255472,4458.3,4458.1,0.2589]
[1759593907667,0.02255472,4458.6,4458.2,0.2589]
[1759593907869,0.02255472,4458.6,4457.6,2.24333611]
[1759593908382,2.71015588,4459.8,4457.8,0.2589]
[1759593908684,2.24273264,4458.9,4457.9,2.26562766]
[1759593908845,0.02255472,4458.8,4458.0,2.24313877]
[1759593909039,0.02255472,4458.8,4458.1,0.2589]
[1759593909590,2.26531169,4458.8,4458.1,0.2589]
[1759593909945,0.02255472,4458.8,4458.1,0.2589]
[1759593910288,2.26531314,4458.8,4458.1,0.2589]
[1759593910462,2.26531314,4458.8,4458.1,0.2599]
[1759593910785,0.02255472,4458.8,4458.1,0.2599]
[1759593910968,2.26531528,4458.8,4458.1,0.2599]
[1759593911516,2.26531528,4458.8,4458.1,0.3719]
[1759593911517,0.112,4458.7,4458.1,0.3719]
[1759593911663,0.02255472,4458.6,4458.1,0.3719]
[1759593911865,0.02255472,4458.6,4458.2,0.2589]
[1759593912286,0.02255472,4458.6,4458.3,0.2589]
[1759593912889,0.13455472,4458.7,4458.3,0.2589]
[1759593914088,0.112,4458.7,4458.3,0.2589]
[1759593914287,0.13455472,4458.7,4458.3,0.2589]
[1759593914586,4.36455472,4459.1,4458.5,2.3549068]
[1759593914788,4.36455472,4459.1,4458.6,0.2589]
[1759593914987,4.36455472,4459.1,4458.5,0.112]
[1759593915164,2.24276636,4458.8,4458.3,2.643]
[1759593915390,2.26536522,4458.7,4458.3,2.643]
[1759593915787,0.02255472,4458.7,4458.3,2.643]
[1759593916004,0.02255472,4458.9,4458.3,2.643]
[1759593916213,0.02255472,4458.9,4458.4,2.531]
[1759593916390,2.26527655,4458.9,4458.4,2.531]
[1759593916592,0.02255472,4458.9,4458.4,2.531]
[1759593916973,0.02255472,4459.0,4458.4,2.531]
[1759593917174,0.02255472,4459.0,4458.5,0.28132906]
[1759593917413,2.35446567,4459.4,4458.7,0.112]
[1759593917716,0.02255472,4459.3,4458.7,0.112]
[1759593918303,2.26507067,4459.3,4458.7,0.112]
[1759593918494,2.24257819,4459.2,4458.7,0.112]
[1759593918695,0.02255472,4459.1,4458.7,0.112]
[1759593919108,0.02255472,4459.3,4458.7,0.112]
[1759593919919,0.02255472,4459.3,4458.7,2.61370402]
[1759593920417,0.02255472,4459.3,4458.8,2.24274471]
[1759593920796,0.02255472,4459.3,4458.9,2.7899]
[1759593921316,0.02255472,4459.3,4458.9,0.2589]
[1759593921480,0.02255472,4459.3,4459.0,2.531]
[1759593922880,0.112,4459.4,4459.0,2.7899]
[1759593923080,0.13455472,4459.4,4459.0,2.7899]
[1759593924095,0.112,4459.4,4459.0,2.7899]
[1759593924817,0.112,4459.4,4459.0,2.531]
[1759593925211,0.02255472,4459.3,4458.7,0.112]
[1759593925517,0.02255472,4459.3,4458.8,2.53]
[1759593925719,0.46905472,4459.3,4458.8,2.53]
[1759593925893,0.02255472,4459.3,4458.8,2.53]
[1759593926215,0.02255472,4459.3,4458.8,5.03165544]
[1759593926596,0.02255472,4459.3,4458.8,4.77275544]
[1759593927027,0.02255472,4459.3,4458.9,2.24269866]
[1759593927190,0.02255472,4459.3,4458.8,2.53]
[1759593927525,0.02255472,4459.3,4458.8,4.77272114]
[1759593928015,0.02255472,4459.3,4458.8,5.03162114]
[1759593928522,0.02455472,4459.3,4458.8,5.03162114]
[1759593929880,0.02455472,4459.3,4458.8,2.7889]
[1759593930085,0.02455472,4459.3,4458.8,5.03164345]
[1759593930820,0.02455472,4459.3,4458.8,2.53]
[1759593931014,0.002,4459.3,4459.2,2.35455471]
[1759593931325,0.002,4459.3,4459.2,4.88455471]
[1759593931546,0.002,4459.3,4459.2,5.14345471]
[1759593937531,0.002,4459.3,4459.2,0.112]
[1759593937750,0.4321,4459.3,4459.2,0.112]
[1759593937964,0.4321,4459.3,4458.2,4.64301285]
[1759593938143,0.45265472,4459.2,4458.8,0.112]
[1759593938341,0.45265472,4459.2,4458.9,2.53]
[1759593938537,0.002,4459.3,4458.9,2.53]
[1759593938769,0.4301,4459.2,4458.9,4.77270321]
[1759593939075,0.4301,4459.2,4458.9,2.53]
[1759593939660,0.002,4459.3,4459.0,2.24261701]
[1759593940062,0.002,4459.3,4459.2,2.24255471]
[1759593940261,0.002,4459.3,4459.2,4.77255471]
[1759593940687,0.002,4459.3,4459.2,5.59101139]
[1759593941623,0.002,4459.3,4459.2,5.33211139]
[1759593942092,0.002,4459.3,4459.2,2.24255471]
[1759593942299,0.002,4459.3,4459.2,4.77255471]
[1759593943683,0.002,4459.3,4459.2,19.27255471]
[1759593944299,0.002,4459.3,4459.2,14.5]
[1759593944498,0.4321,4459.3,4459.2,2.53]
[1759593944800,0.4321,4459.3,4458.6,0.08973589]
[1759593944801,0.4321,4459.3,4458.6,2.24281394]
[1759593945096,0.002,4459.3,4458.8,2.24274618]
[1759593945425,0.4301,4459.2,4458.9,2.24268381]
[1759593945732,0.4301,4459.2,4459.0,2.53]
[1759593946211,0.002,4459.3,4459.0,2.53]
[1759593946728,0.002,4459.3,4459.1,2.24256613]
[1759593946897,0.002,4459.3,4459.2,2.53]
[1759593947704,0.002,4459.3,4459.1,2.24259867]
[1759593947899,0.002,4459.3,4459.2,2.53]
[1759593948726,0.002,4459.3,4459.2,5.03145471]
[1759593948898,0.002,4459.3,4459.2,5.77230512]
[1759593949505,0.002,4459.3,4459.2,5.51340512]
[1759593950291,0.002,4459.3,4459.2,4.77255471]
[1759593951126,0.002,4459.3,4459.2,19.53145471]
[1759593951809,0.002,4459.3,4459.2,19.27255471]
[1759593953221,0.002,4459.3,4459.2,17.03]
[1759593953562,0.002,4459.3,4459.2,19.27255471]
[1759593954150,0.002,4459.3,4459.2,4.77255471]
[1759593955069,0.4355,4459.3,4459.2,2.53]
[1759593955625,0.4355,4459.3,4459.2,4.77255471]
[1759593956240,0.4355,4459.3,4459.2,2.24255471]
[1759593956530,0.4355,4459.3,4459.2,4.77255471]
[1759593957165,0.002,4459.3,4459.2,4.77255471]
[1759593960783,0.002,4459.3,4459.2,5.64796604]
[1759593961670,0.002,4459.3,4459.2,4.77255471]
[1759593962583,0.002,4459.3,4459.2,19.27255471]
[1759593965487,0.002,4459.3,4459.2,4.77255471]
[1759593968396,0.002,4459.3,4459.2,5.98120626]
[1759593968693,0.002,4459.3,4459.2,3.73865155]
[1759593968895,0.002,4459.3,4459.2,5.98120626]
[1759593970094,0.4355,4459.3,4459.2,5.98120626]
[1759593970665,0.002,4459.3,4459.2,5.98120626]
[1759593975002,0.002,4459.3,4459.2,3.73865155]
[1759593975202,0.4355,4459.3,4459.2,2.53]
[1759593977760,2.67802069,4459.3,4458.8,1.20865155]
[1759593977960,2.67802069,4459.3,4458.9,2.53]
[1759593977961,0.45605472,4459.2,4458.9,2.53]
[1759593978160,0.4335,4459.1,4458.9,2.53]
[1759593978361,0.45605472,4459.0,4458.9,2.53]
[1759593978866,0.45605472,4459.0,4458.8,2.53]
[1759593979095,0.5455,4458.9,4458.8,2.53]
[1759593979276,0.5455,4458.9,4458.3,0.112]
[1759593979480,2.67622659,4458.9,4458.3,2.53]
[1759593979705,2.24285555,4458.7,4458.2,2.53]
[1759593980006,0.45605472,4458.6,4458.1,0.001]
[1759593980201,0.45605472,4458.6,4458.2,2.53]
[1759593980375,2.24300742,4458.3,4458.1,0.001]
[1759593980575,0.02255472,4458.2,4458.1,2.531]
[1759593980888,0.4388,4458.2,4458.1,2.531]
[1759593981204,0.46135472,4458.2,4458.1,2.531]
[1759593981580,0.4388,4458.2,4458.1,2.531]
[1759593982490,0.4388,4458.2,4458.1,0.001]
[1759593982694,2.68185773,4458.2,4458.1,2.531]
[1759593984270,0.4388,4458.2,4458.1,0.001]
[1759593984595,2.68185773,4458.2,4458.1,0.001]
[1759593984804,2.70441245,4458.2,4458.1,0.001]
[1759593989601,2.81641245,4458.2,4458.1,0.001]
[1759593991142,5.85001245,4458.2,4458.1,0.001]
[1759593991343,5.82745773,4458.2,4458.1,0.001]
[1759593991546,5.91725506,4458.2,4458.1,0.001]
[1759593996366,5.91925506,4458.2,4458.1,0.001]
[1759593998370,8.45025506,4458.2,4458.1,0.001]
[1759594002246,13.63817162,4458.2,4458.1,0.001]
[1759594002974,7.28805773,4458.2,4458.1,0.001]
[1759594005464,2.243259,4457.8,4457.7,0.001]
[1759594005667,2.26581372,4457.8,4457.7,0.001]
[1759594005963,2.37781372,4457.8,4457.7,0.001]
[1759594008477,2.26581372,4457.8,4457.7,0.2599]
[1759594008664,2.37781372,4457.8,4457.7,0.2599]
[1759594008978,2.37781372,4457.8,4457.7,0.001]
[1759594010962,2.355259,4457.8,4457.7,0.001]
[1759594011163,2.37781372,4457.8,4457.7,0.001]
[1759594015781,0.02255472,4457.9,4457.7,0.001]
[1759594015964,0.002,4458.0,4457.7,0.2599]
[1759594016142,0.002,4458.0,4457.8,0.26172436]
[1759594016543,0.002,4458.0,4457.9,0.2589]
[1759594016790,0.002,4458.0,4457.9,2.50210868]
[1759594017281,0.002,4458.0,4457.9,2.63654076]
[1759594019182,0.002,4458.0,4457.9,5.16754076]
[1759594019381,0.002,4458.0,4457.9,5.14510868]
[1759594019952,0.002,4458.0,4457.9,19.64510868]
[1759594020180,0.002,4458.0,4457.9,21.83415024]
[1759594020382,0.002,4458.0,4457.9,19.04425024]
[1759594020684,0.002,4458.0,4457.9,17.143]
[1759594020849,0.002,4458.0,4457.9,19.64510868]
[1759594021050,0.002,4458.0,4457.9,5.14510868]
[1759594024045,0.002,4458.0,4457.9,2.61410868]
[1759594024249,0.002,4458.0,4457.9,2.642]
[1759594024749,0.4709,4458.0,4457.7,0.001]
[1759594024950,0.49145472,4457.9,4457.7,2.356]
[1759594025149,0.02255472,4457.9,4457.7,2.356]
[1759594025762,0.114,4458.0,4457.7,2.356]
[1759594026375,0.114,4458.0,4457.7,2.6149]
[1759594026765,0.114,4458.0,4457.8,2.24325644]
[1759594026948,0.002,4458.0,4457.8,3.10957124]
[1759594027148,0.002,4458.0,4457.9,0.2589]
[1759594027589,0.002,4458.0,4457.9,2.63654076]
[1759594029664,0.002,4458.0,4457.9,0.112]
[1759594030900,0.002,4458.0,4457.9,2.35520868]
[1759594031104,0.002,4458.0,4457.9,2.37764076]
[1759594031299,0.002,4458.0,4457.9,2.63654076]
[1759594031500,0.002,4458.0,4457.9,3.3602226]
[1759594032603,0.002,4458.0,4457.9,3.1013226]
[1759594033279,0.002,4458.0,4457.9,2.37764076]
[1759594033479,0.002,4458.0,4457.9,2.63654076]
[1759594033992,0.002,4458.0,4457.9,2.37764076]
[1759594034190,0.002,4458.0,4457.9,2.63654076]
[1759594036703,0.002,4458.0,4457.9,2.35520868]
[1759594036904,0.002,4458.0,4457.9,3.20648807]
[1759594037312,0.002,4458.0,4457.9,0.96327939]
[1759594037795,0.002,4458.0,4457.9,3.20648807]
[1759594037969,0.002,4458.0,4457.9,0.96327939]
[1759594038169,0.002,4458.0,4457.9,0.112]
[1759594038495,0.4709,4458.0,4457.9,2.642]
[1759594039316,0.002,4458.0,4457.9,2.642]
[1759594040905,0.4504,4458.0,4457.9,2.642]
[1759594043999,0.002,4458.0,4457.9,2.642]
[1759594045815,0.002,4458.0,4457.9,5.52937384]
[1759594046018,0.002,4458.0,4457.9,3.28616516]
[1759594046526,0.002,4458.0,4457.9,5.52937384]
[1759594047037,0.002,4458.0,4457.9,38.82244749]
[1759594047201,0.002,4458.0,4457.9,38.91218982]
[1759594048094,0.002,4458.0,4457.9,40.51917428]
[1759594048295,0.002,4458.0,4457.9,38.91218982]
[1759594048497,0.002,4458.0,4457.9,40.51917428]
[1759594049090,0.002,4458.0,4457.9,38.91218982]
[1759594049496,0.002,4458.0,4457.9,39.18211452]
[1759594053209,0.002,4458.0,4457.9,39.43629395]
[1759594053550,0.002,4458.0,4457.9,35.15557995]
[1759594054043,0.002,4458.0,4457.9,38.40862995]
[1759594054745,0.002,4458.0,4457.9,33.58706652]
[1759594055050,0.002,4458.0,4457.9,33.88414852]
[1759594055254,0.002,4458.0,4457.9,35.75145895]
[1759594055409,0.002,4458.0,4457.9,34.14304852]
[1759594055938,0.002,4458.0,4457.9,35.75145895]
[1759594056241,0.002,4458.0,4457.9,40.79052495]
[1759594057329,0.002,4458.0,4457.9,29.70345995]
[1759594057504,0.002,4458.0,4457.9,27.88161352]
[1759594057916,0.002,4458.0,4457.9,28.14051352]
[1759594058123,0.002,4458.0,4457.9,35.57168352]
[1759594058737,1e-08,4458.2,4458.1,5.27670805]
[1759594059043,1e-08,4458.2,4458.1,40.61272538]
[1759594059354,1e-08,4458.2,4458.1,42.47915618]
[1759594059545,1e-08,4458.2,4458.1,42.56889066]
[1759594061731,1e-08,4458.2,4458.1,57.06889066]
[1759594062333,1e-08,4458.2,4458.1,56.80941701]
[1759594063142,1e-08,4458.2,4458.1,26.80941701]
[1759594063458,1e-08,4458.2,4458.1,56.80941701]
[1759594063818,1e-08,4458.2,4458.1,56.55051701]
[1759594064035,1e-08,4458.2,4458.1,56.80941701]
[1759594064436,1e-08,4458.2,4458.1,56.55051701]
[1759594065231,1e-08,4458.2,4458.1,34.42495951]
[1759594065556,1e-08,4458.2,4458.1,36.95395951]
[1759594066268,1e-08,4458.2,4458.1,39.62478551]
[1759594067351,1e-08,4458.2,4458.1,41.41464051]
[1759594067675,1e-08,4458.2,4458.1,38.88564051]
[1759594067837,1e-08,4458.2,4458.1,36.44084651]
[1759594068037,1e-08,4458.2,4458.1,35.91906251]
[1759594068253,0.43520001,4458.2,4458.1,35.53875751]
[1759594068877,1e-08,4458.2,4458.1,35.53875751]
[1759594069577,1e-08,4458.2,4458.1,36.64081351]
[1759594070463,1e-08,4458.2,4458.1,38.00642051]
[1759594070782,1e-08,4458.2,4458.1,37.68275551]
[1759594071276,1e-08,4458.2,4458.1,39.29028631]
[1759594071481,1e-08,4458.2,4458.1,40.67235031]
[1759594072483,1e-08,4458.2,4458.1,40.73154231]
[1759594072859,1e-08,4458.2,4458.1,39.33289931]
[1759594073362,1e-08,4458.2,4458.1,38.41610451]
[1759594073567,1e-08,4458.2,4458.1,38.03892651]
[1759594073894,0.43060001,4458.2,4458.1,29.00673734]
[1759594074253,1e-08,4458.2,4458.1,27.39749751]
[1759594074466,1e-08,4458.2,4458.1,32.01292651]
[1759594075066,1e-08,4458.2,4458.1,33.62287888]
[1759594075252,1e-08,4458.2,4458.1,32.01292651]
[1759594075563,1e-08,4458.2,4458.1,31.77396751]
[1759594076266,1e-08,4458.2,4458.1,32.03344116]
[1759594076563,1e-08,4458.2,4458.1,36.02399816]
[1759594077389,0.002,4458.5,4458.4,2.87655711]
[1759594077691,0.002,4458.5,4458.4,32.2470957]
[1759594077988,0.002,4458.5,4458.4,29.40157174]
[1759594078183,0.002,4458.5,4458.4,43.99130642]
[1759594078590,0.002,4458.5,4458.4,47.13860342]
[1759594078891,0.002,4458.5,4458.4,46.07849542]
[1759594079753,0.002,4458.5,4458.4,46.85670542]
[1759594080176,0.002,4458.5,4458.4,35.81094142]
[1759594080378,0.002,4458.5,4458.4,27.70866577]
[1759594080556,0.002,4458.5,4458.4,29.09262577]
[1759594080557,0.4326,4458.5,4458.4,29.09262577]
[1759594080773,0.4326,4458.5,4458.4,25.28438777]
[1759594081206,0.4326,4458.5,4458.4,26.89595437]
[1759594081519,0.4326,4458.5,4458.4,24.15131077]
[1759594081686,0.4326,4458.5,4458.4,26.45210477]
[1759594082020,0.4326,4458.5,4458.4,11.95210477]
[1759594083210,0.4326,4458.5,4458.4,9.67448579]
[1759594085285,0.4326,4458.5,4458.4,7.37369179]
[1759594085798,0.4326,4458.5,4458.4,4.84469179]
[1759594086001,0.4326,4458.5,4458.4,2.641]
[1759594086511,0.4326,4458.5,4458.4,0.112]
[1759594087014,0.4326,4458.5,4458.4,4.88395711]
[1759594089191,0.002,4458.5,4458.4,4.88395711]
[1759594089513,0.002,4458.5,4458.4,6.92667929]
[1759594090090,0.002,4458.5,4458.4,21.42667929]
[1759594090914,0.002,4458.5,4458.4,19.18372218]
[1759594091116,0.4326,4458.5,4458.4,18.35002175]
[1759594091291,0.4326,4458.5,4458.4,14.612]
[1759594091481,0.4326,4458.5,4458.4,17.141]
[1759594091681,0.4326,4458.5,4458.4,0.112]
[1759594091885,0.4326,4458.5,4458.4,2.641]
[1759594092087,0.4326,4458.5,4458.4,0.112]
[1759594092283,2.6755068,4458.5,4458.4,2.641]
[1759594092618,0.4326,4458.5,4458.4,2.641]
[1759594093014,0.4326,4458.5,4458.4,0.112]
[1759594093314,0.4326,4458.5,4458.4,2.641]
[1759594093883,0.4326,4458.5,4458.4,2.529]
[1759594095218,2.6755068,4458.5,4458.4,2.529]
[1759594095512,0.4326,4458.5,4458.4,2.529]
[1759594097025,2.24305773,4458.2,4458.1,0.001]
[1759594097227,2.24305773,4458.2,4458.1,2.53]
[1759594097414,0.4306,4458.2,4458.1,2.53]
[1759594098324,2.67365773,4458.2,4458.1,2.53]
[1759594098507,2.67365773,4458.2,4458.1,0.001]
[1759594098709,2.67365773,4458.2,4458.1,2.53]
[1759594100200,0.4306,4458.2,4458.1,2.53]
[1759594100435,2.69621245,4458.2,4458.1,2.53]
[1759594102921,2.69621245,4458.2,4458.1,0.001]
[1759594103718,5.09621245,4458.2,4458.1,0.001]
[1759594103952,5.18565773,4458.2,4458.1,0.001]
[1759594110221,2.35505773,4458.2,4458.1,0.001]
[1759594110417,2.37761245,4458.2,4458.1,0.001]
[1759594111994,2.35505773,4458.2,4458.1,0.001]
[1759594112287,2.37761245,4458.2,4458.1,0.001]
[1759594113343,2.35505773,4458.2,4458.1,0.001]
[1759594114367,2.37761245,4458.2,4458.1,0.001]
[1759594114582,0.13455472,4458.2,4458.1,0.001]
[1759594115402,2.37761245,4458.2,4458.1,0.001]
[1759594116000,0.13455472,4458.2,4458.1,0.001]
[1759594116318,0.002,4458.5,4458.4,2.24295711]
[1759594116594,0.002,4458.5,4458.4,2.50185711]
[1759594116757,0.002,4458.5,4458.4,3.12208273]
[1759594116954,0.002,4458.5,4458.4,0.62022562]
[1759594117666,0.002,4458.5,4458.4,3.12208273]
[1759594117869,0.002,4458.5,4458.4,0.62022562]
[1759594118071,2.24305773,4458.2,4458.1,0.001]
[1759594118287,2.69595773,4458.2,4458.1,0.001]
[1759594118478,2.71851245,4458.2,4458.1,0.001]
[1759594119086,0.47545472,4458.2,4458.1,0.001]
[1759594119498,0.4529,4458.2,4458.1,0.001]
[1759594119808,2.37757139,4458.3,4458.1,0.001]
[1759594120501,2.69795773,4458.2,4458.1,0.001]
[1759594120865,0.002,4458.2,4458.1,0.001]
[1759594121967,0.02455472,4458.2,4458.1,0.001]
[1759594125835,0.002,4458.2,4458.1,2.52543913]
[1759594125996,0.002,4458.2,4458.1,3.23286962]
[1759594126576,0.002,4458.2,4458.1,3.2553007]
[1759594131675,0.002,4458.2,4458.1,2.9964007]
[1759594131800,0.002,4458.2,4458.1,5.5254007]